bitfinex/quotes_ETHUSD_20240811
["timestamp","ask_amount","ask_price","bid_price","bid_amount"]
[1723419741362,14.47088665,2563.6,2563.5,14.46081356]
[1723419744920,14.47088665,2563.6,2563.5,17.58154356]
[1723419745134,0.17060665,2563.6,2563.5,23.07651079]
[1723419745436,14.30028,2564.2,2564.1,6.24]
[1723419745593,14.30028,2564.2,2564.1,7.726023]
[1723419747225,14.30028,2564.2,2564.1,6.79]
[1723419747615,14.46181467,2564.2,2564.1,3.67]
[1723419748395,14.46181467,2564.2,2564.1,6.79]
[1723419748599,14.30028,2564.2,2564.1,6.79]
[1723419748822,14.46194942,2564.2,2564.1,6.79]
[1723419751242,14.46194942,2564.2,2564.1,3.67]
[1723419751577,16.86594942,2564.2,2564.1,3.67]
[1723419751779,14.46194942,2564.2,2564.1,3.67]
[1723419752278,14.46194942,2564.2,2564.1,6.79]
[1723419752485,14.46194942,2564.2,2564.1,8.029722]
[1723419753178,14.46194942,2564.2,2564.1,4.909722]
[1723419753337,14.46194942,2564.2,2564.1,3.67]
[1723419754551,14.46194942,2564.2,2564.1,6.79]
[1723419755149,14.30028,2564.2,2564.1,6.79]
[1723419755573,14.4621336,2564.2,2564.1,6.79]
[1723419755777,14.4621336,2564.2,2564.1,8.068219]
[1723419756946,14.4621336,2564.2,2564.1,4.948219]
[1723419757132,14.4621336,2564.2,2564.1,3.67]
[1723419757336,14.4621336,2564.2,2564.1,6.79]
[1723419757537,14.4621336,2564.2,2564.1,3.67]
[1723419758246,14.4621336,2564.2,2564.1,6.79]
[1723419758479,14.4621336,2564.2,2564.1,3.67]
[1723419759040,14.4621336,2564.2,2564.1,0.55]
[1723419759261,14.4621336,2564.2,2564.1,3.12]
[1723419759459,14.4621336,2564.2,2564.1,3.67]
[1723419760642,14.4621336,2564.2,2563.9,3.12013]
[1723419760843,14.4621336,2564.2,2564.0,3.12011]
[1723419761177,14.30028,2564.1,2564.0,3.12011]
[1723419761469,14.46208558,2564.1,2564.0,3.67011]
[1723419761835,14.46208558,2564.1,2564.0,0.55]
[1723419762036,2.3464,2564.0,2563.8,3.12036]
[1723419762265,2.3464,2564.0,2563.9,3.12024]
[1723419763061,14.30028,2564.1,2564.0,3.12012]
[1723419763269,14.30028,2564.1,2564.0,6.24024]
[1723419763478,14.30028,2564.1,2564.0,3.67012]
[1723419763850,14.30028,2564.1,2564.0,4.86712]
[1723419764801,14.30028,2564.1,2564.0,1.197]
[1723419765006,16.77848,2564.1,2564.0,1.197]
[1723419765683,14.30028,2564.1,2564.0,4.31712]
[1723419765894,14.30028,2564.1,2564.0,4.86712]
[1723419767414,14.30028,2564.1,2564.0,1.197]
[1723419768999,14.30028,2564.1,2564.0,4.86712]
[1723419769376,14.30028,2564.1,2564.0,7.98724]
[1723419769810,14.30028,2564.1,2564.0,9.014244]
[1723419771289,14.30028,2564.1,2564.0,7.98724]
[1723419771887,14.30028,2564.1,2564.0,11.10736]
[1723419772109,14.30028,2564.1,2564.0,16.55176]
[1723419772617,14.30028,2564.5,2564.4,6.23926]
[1723419772912,14.30028,2564.5,2564.4,7.98626]
[1723419773114,14.30028,2564.5,2564.4,9.09687]
[1723419775620,14.30028,2564.5,2564.4,11.43517]
[1723419776619,14.45683983,2564.5,2564.4,11.43517]
[1723419778228,14.45683983,2564.5,2564.4,9.09687]
[1723419778517,14.45683983,2564.5,2564.4,7.98626]
[1723419791139,14.45683983,2564.5,2564.4,6.78926]
[1723419791348,14.45683983,2564.5,2564.4,7.98626]
[1723419795403,14.45683983,2564.5,2564.4,1.747]
[1723419795753,14.45683983,2564.5,2564.4,4.31663]
[1723419798251,14.45683983,2564.5,2564.4,7.43626]
[1723419798452,14.45683983,2564.5,2564.4,8.96529509]
[1723419800722,14.45683983,2564.5,2564.4,12.08492509]
[1723419800919,0.15655983,2564.5,2564.4,17.84762509]
[1723419801131,14.30028,2565.0,2564.9,6.23804]
[1723419801308,14.30028,2565.0,2564.9,14.412185]
[1723419801748,14.30028,2565.4,2565.3,6.23708]
[1723419801957,14.30028,2565.4,2565.3,10.55262]
[1723419802104,14.30028,2565.4,2565.3,15.157882]
[1723419802610,14.30028,2565.4,2565.3,12.039342]
[1723419803852,14.30028,2565.4,2565.3,7.86554]
[1723419804428,14.30028,2565.4,2565.3,4.86554]
[1723419805210,14.30028,2565.4,2565.1,4.31572]
[1723419805752,14.30028,2565.4,2565.1,3.11872]
[1723419806109,14.30028,2565.4,2565.1,3.1187]
[1723419806309,14.30028,2565.4,2564.9,3.0]
[1723419806548,14.30028,2565.4,2565.0,3.66884]
[1723419806713,0.13689639,2565.3,2565.0,3.66884]
[1723419807119,0.13689639,2565.3,2565.1,3.11867]
[1723419807325,0.13689639,2565.3,2565.0,3.66884]
[1723419807562,14.30028,2565.2,2565.0,0.55]
[1723419807757,2.3591,2565.1,2564.9,3.11901]
[1723419808061,2.49593198,2565.1,2564.9,3.11901]
[1723419808219,4.17555318,2565.1,2564.7,3.11916]
[1723419808419,4.17555318,2565.1,2564.6,3.1193]
[1723419808658,14.30028,2565.0,2564.5,3.11943]
[1723419808863,14.43698349,2565.0,2564.5,6.23887]
[1723419809048,2.15944847,2564.9,2564.5,6.23887]
[1723419809254,2.29621924,2564.9,2564.5,3.11943]
[1723419809417,3.11939,2564.7,2564.1,3.11993]
[1723419809618,2.3591,2564.5,2564.2,3.11986]
[1723419809932,2.3591,2564.5,2564.1,3.11991]
[1723419810265,0.13664945,2564.4,2564.2,3.11981]
[1723419811068,14.30028,2564.3,2564.1,3.11991]
[1723419811248,14.43680163,2564.3,2564.1,3.11991]
[1723419813332,14.43680163,2564.3,2564.2,6.23976]
[1723419813535,14.43680163,2564.3,2564.2,7.413736]
[1723419814051,14.30028,2564.3,2564.2,7.413736]
[1723419814237,14.4318209,2564.3,2564.2,7.413736]
[1723419814420,0.1315409,2564.3,2564.2,7.413736]
[1723419814640,14.30028,2564.6,2564.2,7.413736]
[1723419814641,14.30028,2564.6,2564.5,3.11951]
[1723419814998,14.30028,2564.6,2564.5,3.66951]
[1723419815455,14.43181145,2564.6,2564.5,3.66951]
[1723419816058,14.43181145,2564.6,2564.5,6.78902]
[1723419816251,14.43181145,2564.6,2564.5,3.66951]
[1723419817052,14.43181145,2564.6,2564.0,3.0]
[1723419817053,5.60483,2564.5,2564.0,3.12005]
[1723419817256,5.60483,2564.5,2563.4,2.487]
[1723419817550,14.43189782,2564.4,2564.0,3.12009]
[1723419817741,16.30395278,2564.3,2564.0,3.12009]
[1723419817940,14.30028,2564.3,2564.0,3.12009]
[1723419818159,0.13166382,2564.2,2564.0,3.12009]
[1723419818418,0.13166382,2564.2,2564.1,3.12]
[1723419818538,14.30028,2564.3,2564.1,3.12]
[1723419820398,14.30028,2564.3,2564.0,3.12009]
[1723419820399,14.30028,2564.3,2564.2,3.11988]
[1723419820548,14.30028,2564.3,2564.2,3.66988]
[1723419820752,14.30028,2564.3,2564.2,6.78976]
[1723419821662,14.42737425,2564.3,2564.2,6.78976]
[1723419823066,14.42737425,2564.3,2564.2,3.66988]
[1723419823657,14.42737425,2564.3,2564.2,6.78976]
[1723419824369,14.42737425,2564.3,2564.2,3.66988]
[1723419824571,14.42737425,2564.3,2564.2,6.78976]
[1723419825307,14.42737425,2564.3,2564.2,0.55]
[1723419825471,15.87011168,2564.3,2564.1,3.11992]
[1723419825661,14.42737425,2564.3,2564.1,3.11992]
[1723419826902,14.30028,2564.2,2564.1,3.11992]
[1723419827198,14.42722588,2564.2,2564.1,3.66992]
[1723419827559,14.42722588,2564.2,2564.1,6.78992]
[1723419827759,14.42722588,2564.2,2564.1,8.080929]
[1723419837275,14.42722588,2564.2,2564.1,11.200929]
[1723419839820,2.51054588,2564.2,2564.1,3.12]
[1723419840504,2.51054588,2564.2,2563.8,3.1203]
[1723419840703,2.51054588,2564.2,2563.6,3.0]
[1723419840935,2.51054588,2564.2,2564.1,3.12]
[1723419841510,2.76160047,2564.2,2563.7,3.12046]
[1723419841809,2.76160047,2564.2,2563.8,3.12036]
[1723419842110,2.76160047,2564.2,2563.7,3.12042]
[1723419842282,2.76786005,2564.1,2563.7,3.12042]
[1723419842609,2.89484096,2564.1,2563.6,3.1206]
[1723419843307,14.30028,2564.0,2563.5,3.12066]
[1723419843512,16.14660521,2564.0,2563.3,3.12089]
[1723419843673,14.30028,2563.9,2563.8,3.12033]
[1723419843872,14.30028,2563.9,2563.6,3.1205]
[1723419843873,14.42702912,2563.9,2563.6,3.1205]
[1723419844195,14.42702912,2563.9,2563.6,6.24103]
[1723419845520,14.42702912,2563.9,2563.7,3.12045]
[1723419846693,14.42702912,2563.9,2563.6,3.1205]
[1723419846892,16.14071534,2563.9,2563.6,3.1205]
[1723419847511,14.2944773,2563.8,2563.6,3.1205]
[1723419847715,14.42101467,2563.8,2563.6,3.12061]
[1723419849816,2.4579,2563.7,2563.6,3.12061]
[1723419850027,2.5844173,2563.7,2563.6,3.67061]
[1723419850442,2.5844173,2563.7,2563.6,0.55]
[1723419850604,18.73873295,2563.7,2563.4,3.12076]
[1723419850804,16.8788946,2563.7,2563.4,3.12076]
[1723419851025,16.8788946,2563.7,2563.5,3.12069]
[1723419852721,14.4209946,2563.7,2563.6,6.79122]
[1723419853049,14.4209946,2563.7,2563.6,7.470342]
[1723419853249,14.4209946,2563.7,2563.6,6.79122]
[1723419854639,14.4209946,2563.7,2563.6,3.67061]
[1723419855827,16.8861946,2563.7,2563.2,3.12109]
[1723419856040,16.8861946,2563.7,2563.3,3.1209]
[1723419856041,1.68861946,2563.6,2563.3,3.1209]
[1723419856357,16.10957404,2563.6,2563.3,3.1209]
[1723419857010,16.10957404,2563.6,2563.5,3.12073]
[1723419857011,14.42095458,2563.6,2563.5,3.12073]
[1723419857216,14.42095458,2563.6,2563.5,6.79146]
[1723419861731,14.2944773,2563.6,2563.5,6.79146]
[1723419862161,14.4208587,2563.6,2563.5,6.79146]
[1723419863969,14.4208587,2563.6,2563.5,3.67073]
[1723419867480,14.4208587,2563.6,2563.5,6.79146]
[1723419867897,14.4208587,2563.6,2563.5,7.98946]
[1723419872796,18.33884457,2563.6,2563.3,3.12086]
[1723419872946,18.33884457,2563.6,2563.4,3.67085]
[1723419873148,18.33884457,2563.6,2563.5,3.12073]
[1723419873357,14.4208587,2563.6,2563.5,3.12073]
[1723419873975,16.7233587,2563.6,2563.5,3.12073]
[1723419876208,16.7233587,2563.6,2563.4,4.86883]
[1723419876500,14.4208587,2563.6,2563.5,6.24146]
[1723419876705,14.4208587,2563.6,2563.5,3.67073]
[1723419877400,14.4208587,2563.6,2563.5,0.55]
[1723419877898,14.4208587,2563.6,2563.5,3.67073]
[1723419878593,16.7233587,2563.6,2563.4,1.198]
[1723419878795,16.7233587,2563.6,2563.4,4.31875]
[1723419880561,16.7233587,2563.6,2563.4,1.198]
[1723419880790,16.7233587,2563.6,2563.4,4.31884]
[1723419880984,16.7233587,2563.6,2563.4,1.198]
[1723419881984,18.70773157,2563.6,2563.4,1.198]
[1723419882190,21.82845157,2563.6,2563.1,1.198]
[1723419883322,14.2944773,2563.5,2563.1,1.198]
[1723419883813,0.12634939,2563.4,2563.1,1.198]
[1723419884015,14.2944773,2563.3,2563.1,1.198]
[1723419884225,14.2944773,2563.3,2563.1,4.3192]
[1723419884389,0.12630924,2563.2,2563.1,4.3192]
[1723419884574,0.12630924,2563.2,2563.1,7.8692]
[1723419884781,14.2944773,2563.3,2563.1,7.8692]
[1723419885077,0.12630924,2563.2,2563.1,7.8692]
[1723419885301,14.2944773,2563.3,2563.1,7.8692]
[1723419885505,0.12630924,2563.2,2563.1,7.8692]
[1723419885704,14.2944773,2563.3,2563.1,7.8692]
[1723419886068,12.5464773,2563.1,2562.6,2.3265]
[1723419886313,12.5464773,2563.1,2563.0,4.31934]
[1723419888378,12.5464773,2563.1,2563.0,13.01792]
[1723419888714,12.5464773,2563.1,2563.0,20.26202062]
[1723419889016,12.5464773,2563.1,2563.0,18.27718307]
[1723419889182,12.5464773,2563.1,2563.0,20.26165894]
[1723419890184,12.5464773,2563.1,2563.0,15.94231894]
[1723419890379,12.5464773,2563.1,2563.0,17.14031894]
[1723419890612,12.5464773,2563.1,2563.0,15.83852694]
[1723419891006,12.5464773,2563.1,2563.0,18.95986694]
[1723419891320,12.5464773,2563.1,2563.0,18.95990912]
[1723419891817,12.5464773,2563.1,2563.0,15.83856912]
[1723419892019,12.5464773,2563.1,2563.0,20.85590103]
[1723419893002,12.5464773,2563.1,2563.0,17.73456103]
[1723419895366,12.5464773,2563.1,2563.0,15.75004298]
[1723419895532,12.5464773,2563.1,2563.0,17.73451559]
[1723419897253,12.5464773,2563.1,2563.0,15.27861559]
[1723419897457,12.5464773,2563.1,2563.0,13.38262368]
[1723419898066,12.5464773,2563.1,2563.0,10.99068]
[1723419898224,12.5464773,2563.1,2563.0,12.97531693]
[1723419900163,12.5464773,2563.1,2563.0,12.97528931]
[1723419900957,12.5464773,2563.1,2563.0,12.97531311]
[1723419901188,13.91885414,2563.1,2563.0,3.12134]
[1723419901391,10.79751414,2563.1,2563.0,4.31934]
[1723419901687,10.79751414,2563.1,2563.0,7.44068]
[1723419901994,9.54286641,2563.1,2563.0,7.44068]
[1723419903494,9.54286641,2563.1,2563.0,4.31934]
[1723419904169,9.54286641,2563.1,2563.0,7.44068]
[1723419904366,9.54286641,2563.1,2563.0,4.31934]
[1723419905261,12.01576641,2563.1,2562.9,3.12138]
[1723419905455,0.95428664,2563.0,2562.9,3.12138]
[1723419905801,1.07168514,2563.0,2562.9,7.31938]
[1723419905965,1.07168514,2563.0,2562.8,3.12157]
[1723419906288,1.07168514,2563.0,2562.9,1.198]
[1723419906496,1.07168514,2563.0,2562.7,4.31966]
[1723419906652,1.29697224,2562.9,2562.7,4.31964]
[1723419906854,0.11743038,2562.8,2562.7,4.31964]
[1723419907091,9.54256768,2562.8,2562.7,7.31964]
[1723419907682,9.54256768,2562.8,2562.7,1.198]
[1723419907982,10.62652167,2562.8,2562.7,1.198]
[1723419908171,13.09942167,2562.8,2562.7,1.198]
[1723419908501,13.09942167,2562.8,2562.7,4.3197]
[1723419908714,12.01546768,2562.8,2562.7,4.3197]
[1723419909075,9.54256768,2562.8,2562.7,9.42628267]
[1723419909600,9.54256768,2562.8,2562.7,9.97628267]
[1723419910697,9.54256768,2562.8,2562.7,12.97628267]
[1723419912074,9.54256768,2562.8,2562.7,12.97628755]
[1723419912723,9.54256768,2562.8,2562.7,16.09792464]
[1723419912927,9.54256768,2562.8,2562.7,11.22822464]
[1723419913232,9.54256768,2562.8,2562.7,10.4414]
[1723419915028,9.54256768,2562.8,2562.7,14.1131]
[1723419915190,9.54256768,2562.8,2562.7,10.9914]
[1723419915992,9.54256768,2562.8,2562.7,10.4414]
[1723419916495,9.54256768,2562.8,2562.7,7.3197]
[1723419918018,9.54256768,2562.8,2562.7,10.4414]
[1723419920255,9.54256768,2562.8,2562.7,7.3197]
[1723419920558,9.54256768,2562.8,2562.7,10.4414]
[1723419920765,9.54256768,2562.8,2562.7,12.045182]
[1723419920916,9.54256768,2562.8,2562.7,12.595182]
[1723419924656,9.54256768,2562.8,2562.7,15.716882]
[1723419924859,9.54256768,2562.8,2562.7,16.107182]
[1723419925042,9.54256768,2562.8,2562.7,18.49951686]
[1723419925379,9.54256768,2562.8,2562.7,13.77403486]
[1723419925514,9.54256768,2562.8,2562.7,7.72726073]
[1723419925721,9.54256768,2562.8,2562.7,4.198]
[1723419926042,9.54256768,2562.8,2562.7,7.3197]
[1723419927163,9.54256768,2562.8,2562.7,10.4414]
[1723419927656,9.54256768,2562.8,2562.7,13.5631]
[1723419927842,9.54256768,2562.8,2562.7,12.350268]
[1723419928159,9.54256768,2562.8,2562.7,12.9762709]
[1723419928666,9.54256768,2562.8,2562.7,10.9914]
[1723419928667,9.4251373,2562.8,2562.7,10.9914]
[1723419929033,9.53479781,2562.8,2562.7,10.9914]
[1723419931118,9.53479781,2562.8,2562.7,6.1217]
[1723419931360,10.48827759,2562.8,2562.7,7.3197]
[1723419931831,10.54250237,2562.8,2562.7,7.3197]
[1723419933869,9.58902259,2562.8,2562.7,7.3197]
[1723419935387,11.91832259,2562.8,2562.7,7.3197]
[1723419936179,9.58902259,2562.8,2562.7,7.3197]
[1723419937774,9.58902259,2562.8,2562.7,10.4414]
[1723419941250,9.58902259,2562.8,2562.7,7.3197]
[1723419941452,10.54792485,2562.8,2562.7,7.3197]
[1723419942492,9.58902259,2562.8,2562.7,7.3197]
[1723419944669,9.58902259,2562.8,2562.7,9.30471916]
[1723419945707,9.58902259,2562.8,2562.7,12.42641916]
[1723419947806,9.58902259,2562.8,2562.7,12.42640521]
[1723419948111,9.58902259,2562.8,2562.7,12.42637292]
[1723419948262,9.58902259,2562.8,2562.7,14.46599021]
[1723419948807,9.58902259,2562.8,2562.7,14.46592242]
[1723419949490,9.58902259,2562.8,2562.7,17.58762242]
[1723419949886,9.58902259,2562.8,2562.7,17.58759698]
[1723419950110,9.58902259,2562.8,2562.7,14.46589698]
[1723419950275,9.58902259,2562.8,2562.7,12.97627969]
[1723419951114,9.58902259,2562.8,2562.7,16.09797969]
[1723419951689,9.58902259,2562.8,2562.7,16.09794827]
[1723419953629,9.58902259,2562.8,2562.7,16.09343074]
[1723419953918,9.58902259,2562.8,2562.7,18.26194581]
[1723419954125,9.58902259,2562.8,2562.7,18.66938409]
[1723419955486,9.58902259,2562.8,2562.7,18.66929973]
[1723419957494,9.58902259,2562.8,2562.7,15.54759973]
[1723419957693,9.58902259,2562.8,2562.7,13.37908466]
[1723419958108,9.58902259,2562.8,2562.7,12.97164638]
[1723419959240,9.58902259,2562.8,2562.7,10.98688247]
[1723419959403,9.58902259,2562.8,2562.7,12.97172995]
[1723419959939,9.58902259,2562.8,2562.7,12.97173129]
[1723419960443,9.58902259,2562.8,2562.7,14.95662905]
[1723419962050,9.58902259,2562.8,2562.7,12.97173129]
[1723419962257,10.79444485,2562.8,2562.7,11.22373129]
[1723419962550,9.58902259,2562.8,2562.7,14.40659582]
[1723419965159,11.90642259,2562.8,2562.7,14.40659582]
[1723419965309,11.90642259,2562.8,2562.7,12.421747]
[1723419965709,11.90642259,2562.8,2562.7,12.42184406]
[1723419966014,9.58902259,2562.8,2562.7,18.52014406]
[1723419966244,9.58902259,2562.8,2562.7,19.76232847]
[1723419966720,9.58902259,2562.8,2562.7,14.21402847]
[1723419966922,9.58902259,2562.8,2562.7,12.97184406]
[1723419968787,9.58902259,2562.8,2562.7,16.09354406]
[1723419968962,9.58902259,2562.8,2562.7,12.97184406]
[1723419969140,9.58902259,2562.8,2562.7,16.09354406]
[1723419969655,9.58902259,2562.8,2562.7,11.77384406]
[1723419969859,9.58902259,2562.8,2562.7,12.97173787]
[1723419970065,9.58902259,2562.8,2562.7,12.97175534]
[1723419970627,9.58902259,2562.8,2562.7,16.09345534]
[1723419970944,9.58902259,2562.8,2562.7,12.9717245]
[1723419972819,9.58902259,2562.8,2562.7,12.97177413]
[1723419974266,9.58902259,2562.8,2562.7,23.31433754]
[1723419974436,3.73605259,2562.8,2562.7,24.11277941]
[1723419974644,3.5721673,2562.8,2562.7,24.11277941]
[1723419975165,3.5721673,2562.8,2562.7,20.99107941]
[1723419975350,3.5721673,2562.8,2562.7,24.11277941]
[1723419975548,3.5721673,2563.5,2563.4,6.2417]
[1723419975772,3.5721673,2563.5,2563.4,10.9897]
[1723419976067,3.71511914,2563.5,2563.4,10.9897]
[1723419976421,3.71511914,2563.5,2563.4,16.0949005]
[1723419976927,3.71511914,2563.5,2563.4,12.9740505]
[1723419977680,3.71511914,2563.5,2563.4,10.9897]
[1723419977964,3.71511914,2563.5,2563.3,3.12097]
[1723419977965,4.08663105,2563.5,2563.3,3.12097]
[1723419978262,4.08663105,2563.5,2563.2,4.31899]
[1723419978263,2.3844,2563.4,2563.2,3.12099]
[1723419978468,0.79040814,2563.3,2563.1,3.1212]
[1723419978628,0.79040814,2563.3,2563.2,3.0]
[1723419978822,4.36257544,2563.3,2563.2,3.0]
[1723419979868,4.36257544,2563.3,2563.2,6.12109]
[1723419980078,4.36257544,2563.3,2563.2,7.31909]
[1723419981045,4.36257544,2563.3,2563.2,4.198]
[1723419981789,4.36257544,2563.3,2563.2,7.31909]
[1723419983349,3.71547233,2563.3,2563.2,7.31909]
[1723419986450,3.71411963,2563.3,2563.2,10.99018]
[1723419987152,3.71411963,2563.3,2563.2,13.37778]
[1723419987877,3.71411963,2563.3,2563.2,16.49887]
[1723419988087,3.71411963,2563.3,2563.2,18.148757]
[1723419988794,3.5721673,2563.3,2563.2,18.148757]
[1723419988973,3.70938365,2563.3,2563.2,18.148757]
[1723419989565,3.70938365,2563.3,2563.2,21.269847]
[1723419989768,3.70938365,2563.3,2563.2,21.660747]
[1723419989978,3.5721673,2563.3,2563.2,21.40684096]
[1723419990158,3.5721673,2563.3,2563.2,24.52703813]
[1723419990367,3.5721673,2563.3,2563.2,21.40594813]
[1723419990597,3.5721673,2563.3,2563.2,23.39033681]
[1723419990893,3.5721673,2563.3,2563.2,20.52404568]
[1723419991399,3.5721673,2563.3,2563.2,18.539657]
[1723419991700,3.5721673,2563.3,2563.2,20.52402582]
[1723419991999,3.5721673,2563.3,2563.2,23.64511582]
[1723419992152,3.5721673,2563.3,2563.2,20.52402582]
[1723419992357,3.5721673,2563.3,2563.2,23.64511582]
[1723419992557,1.08783022,2563.6,2563.5,9.36219]
[1723419992783,1.08783022,2563.6,2563.5,18.42775882]
[1723419993051,1.08783022,2563.6,2563.5,16.44339]
[1723419993405,1.08783022,2563.6,2563.5,18.42746636]
[1723419993571,1.08783022,2563.6,2563.5,21.54819636]
[1723419993750,1.08783022,2563.6,2563.5,23.93946715]
[1723419993953,1.08783022,2563.6,2563.5,19.62073715]
[1723419994196,1.08783022,2563.6,2563.5,18.83466079]
[1723419994392,1.08783022,2563.6,2563.5,20.81889673]
[1723419994595,1.08783022,2563.6,2563.5,20.81882799]
[1723419995399,1.08783022,2563.6,2563.5,20.81877334]
[1723419995887,1.08783022,2563.6,2563.5,24.33040334]
[1723419996105,2.423,2564.6,2564.5,6.23892]
[1723419996404,19.87,2564.6,2564.5,7.43692]
[1723419996716,0.13302569,2564.6,2564.5,7.43692]
[1723419996927,0.13302569,2564.6,2564.5,7.98692]
[1723419997059,2.423,2564.8,2564.5,3.11949]
[1723419997397,2.36245586,2564.7,2564.5,4.31749]
[1723419999697,2.36245586,2564.7,2564.6,3.11939]
[1723419999911,0.13315586,2564.7,2564.6,3.11939]
[1723420000205,0.13315586,2564.7,2564.3,4.31765]
[1723420000388,2.3139,2564.6,2564.3,1.198]
[1723420000591,0.23139,2564.5,2564.3,7.31775]
[1723420000991,0.13357516,2564.4,2564.3,10.43743]
[1723420001599,0.13357516,2564.4,2564.3,7.31768]
[1723420001979,2.3139,2564.6,2564.4,3.11954]
[1723420002182,2.54529,2564.6,2564.5,3.11951]
[1723420002904,2.54529,2564.6,2564.3,7.31767]
[1723420003278,2.54529,2564.6,2564.3,4.198]
[1723420003482,2.54529,2564.6,2564.3,3.0]
[1723420003483,2.3761,2564.4,2564.3,3.0]
[1723420003682,2.3761,2564.4,2564.2,6.11984]
[1723420003906,2.3761,2564.4,2564.3,3.11975]
[1723420004128,2.3761,2564.4,2564.3,6.11975]
[1723420004129,2.6623019,2564.4,2564.3,6.11975]
[1723420004271,2.3761,2564.4,2564.3,7.31775]
[1723420004472,2.3761,2564.6,2564.5,3.11951]
[1723420004670,19.87,2564.7,2564.6,3.11939]
[1723420005101,19.87,2564.7,2564.6,6.23878]
[1723420005405,19.87,2564.7,2564.6,6.78878]
[1723420005986,19.87,2564.9,2564.8,3.11915]
[1723420006362,2.61371,2565.0,2564.7,1.198]
[1723420007318,2.61371,2565.0,2564.7,4.31723]
[1723420007616,0.261371,2564.9,2564.7,4.31723]
[1723420009379,0.261371,2564.9,2564.7,1.198]
[1723420009714,2.3829,2564.8,2564.5,4.31743]
[1723420011501,19.87,2564.7,2564.5,4.31743]
[1723420012203,22.2529,2564.8,2564.5,4.31743]
[1723420012385,4.6343271,2564.8,2564.5,1.198]
[1723420012588,4.6343271,2564.8,2564.4,3.11956]
[1723420013417,4.6343271,2564.8,2564.4,6.23912]
[1723420013580,4.6343271,2564.8,2564.5,3.11951]
[1723420014527,4.6343271,2564.8,2564.6,3.11938]
[1723420014862,4.6343271,2564.8,2564.6,6.2387]
[1723420015060,4.6343271,2564.8,2564.6,6.23863]
[1723420015446,4.6343271,2564.8,2564.6,3.11931]
[1723420016742,0.12482397,2564.7,2564.6,3.11931]
[1723420017046,0.12482397,2564.7,2564.5,1.198]
[1723420017047,4.6343271,2564.8,2564.5,1.198]
[1723420017249,0.61007306,2564.7,2564.5,1.198]
[1723420017453,19.87,2564.6,2564.5,1.198]
[1723420017661,19.99048532,2564.6,2564.5,1.198]
[1723420017977,19.99048532,2564.6,2564.5,4.31751]
[1723420018179,19.99048532,2564.6,2564.5,4.86751]
[1723420018388,0.12048532,2564.6,2564.5,9.085727]
[1723420018552,2.4707,2565.2,2564.8,3.1191]
[1723420018553,6.21555508,2565.2,2564.8,3.1191]
[1723420018898,5.58992,2564.8,2564.1,3.11993]
[1723420019046,3.029692,2564.7,2564.1,4.31793]
[1723420019251,3.029692,2564.7,2563.9,4.31816]
[1723420019252,2.2605,2564.5,2563.9,4.31816]
[1723420019663,3.61040987,2564.5,2563.9,4.31816]
[1723420019881,2.2605,2564.5,2564.0,3.1201]
[1723420020052,2.2605,2564.5,2563.4,5.99478]
[1723420020053,3.11967,2564.4,2563.7,3.12042]
[1723420020252,2.3804,2564.3,2563.7,3.12041]
[1723420020455,2.930407,2564.2,2563.7,3.12041]
[1723420020841,6.050347,2564.2,2563.6,3.12056]
[1723420021176,6.050347,2564.2,2563.1,3.12116]
[1723420021177,5.09476989,2564.1,2563.1,3.12116]
[1723420021355,3.1204,2563.8,2563.2,3.121]
[1723420021571,2.3804,2563.9,2563.3,3.12094]
[1723420021962,2.3804,2563.9,2563.5,3.12072]
[1723420022175,2.3804,2563.9,2563.5,3.12065]
[1723420022497,2.3804,2563.9,2563.7,3.12048]
[1723420022655,2.3804,2563.9,2563.5,3.12065]
[1723420023692,3.11969,2564.4,2563.6,3.07801883]
[1723420023693,2.4486,2564.3,2563.6,3.07801883]
[1723420023868,3.74201605,2564.5,2564.2,3.11988]
[1723420024066,16.75012,2564.4,2564.2,3.1198]
[1723420024465,16.75012,2564.4,2564.0,3.12001]
[1723420024652,16.75012,2564.4,2564.1,3.66993]
[1723420024855,1.675012,2564.3,2564.1,3.66993]
[1723420026270,1.675012,2564.3,2564.1,6.78985]
[1723420026565,16.75012,2564.4,2564.3,3.11975]
[1723420028797,6.01151605,2564.9,2564.3,3.11975]
[1723420029005,3.74486125,2564.5,2564.1,3.66995]
[1723420029221,3.74486125,2564.6,2564.1,6.78987]
[1723420029378,2.4261,2564.5,2564.1,3.66992]
[1723420029581,2.4261,2564.5,2563.5,0.312065]
[1723420029582,2.874,2564.2,2562.9,2.3529]
[1723420029783,3.1207,2563.6,2562.9,5.47435]
[1723420030000,3.1207,2563.6,2563.0,3.12124]
[1723420030001,0.624122,2563.5,2563.0,3.12124]
[1723420030179,2.4261,2563.8,2563.3,3.12093]
[1723420030485,2.4261,2563.8,2562.8,2.874]
[1723420030486,3.74368706,2564.0,2563.4,3.12085]
[1723420030688,3.74368706,2564.0,2563.6,3.12061]
[1723420031011,2.4602,2564.1,2563.6,3.12061]
[1723420031211,3.81033038,2564.1,2563.6,3.12061]
[1723420031508,3.74378765,2564.2,2563.8,3.12025]
[1723420031709,2.4602,2564.4,2563.8,3.12025]
[1723420031710,0.10951179,2564.1,2563.8,3.12025]
[1723420031908,3.74378765,2564.3,2563.8,3.12025]
[1723420032210,0.10952973,2564.2,2563.8,3.12025]
[1723420032384,0.10952973,2564.2,2563.7,3.67048]
[1723420032584,6.86354765,2564.3,2563.7,0.55]
[1723420032799,0.10951805,2564.1,2563.6,0.55]
[1723420032996,6.97319211,2564.2,2563.5,3.55]
[1723420033197,0.10951613,2564.0,2563.5,3.55]
[1723420033409,0.10953408,2564.1,2563.5,3.55]
[1723420033587,3.74365009,2564.3,2563.6,3.12058]
[1723420033588,0.10949193,2563.9,2563.6,3.12058]
[1723420033769,0.10950987,2564.0,2563.7,0.55]
[1723420033972,0.10947398,2563.8,2563.7,3.67048]
[1723420034212,3.74365009,2564.3,2563.7,3.67048]
[1723420034671,0.10954576,2564.2,2563.7,3.67048]
[1723420035073,5.20326212,2564.2,2563.7,3.67048]
[1723420035314,5.20326212,2564.2,2563.8,0.679109]